Cogmind - Beta 11.1 @@@ ROGUE MODE // 2022.09.16 @ 11:05:47 Player: ClassActJerk Result: Destroyed by as-45155 with Assembled Heavy Rifle Performance ------------- Evolutions (0) 0 Regions Visited (2) 400 Robots Destroyed (11) 55 Value Destroyed (240) 240 Prototype IDs (0) 0 Alien Tech Used (0) 0 Bonus (0) 0 TOTAL SCORE: 695 Bonus ------- None Cogmind --------- Core Integrity 0/250 Matter 270/300 Energy 125/125 System Corruption 0% Temperature Cool (0) Movement Walking (120) Location -10/Mines Parts ------- > --- POWER (1) -------- Light Ion Engine > --- PROPULSION (2) --- Aluminum Leg Aluminum Leg > --- UTILITY (2) ------ Small Storage Unit Medium Armor Plating > --- WEAPON (2) ------- Small Laser Mini Grenade Launcher > --- INVENTORY (8) ---- Aluminum Leg Aluminum Leg Cooling System Medium Armor Plating Light Assault Rifle Mini Grenade Launcher Mini Grenade Launcher Mini Grenade Launcher Peak State ------------ > --- POWER ------------ Light Ion Engine > --- PROPULSION ------- Aluminum Leg Aluminum Leg > --- UTILITY ---------- Cooling System Medium Armor Plating > --- WEAPON ----------- Particle Gun Mini Grenade Launcher > --- INVENTORY -------- Aluminum Leg Aluminum Leg Medium Armor Plating Small Laser Mini Grenade Launcher [Rating: 11] Favorites ----------- Power Ion Engine Engine Ion Engine Propulsion Aluminum Leg Treads Light Treads Leg Aluminum Leg Wheel Compact Wheel Utility Small Storage Unit Device Cooling System Storage Small Storage Unit Protection Medium Armor Plating Weapon Medium Laser Energy Gun Medium Laser Launcher Mini Grenade Launcher Build | -11 -10 -10 ------- Run | Scr Mat Min Slots Evolved . | . . . Power . | . . . Propulsion . | . . . Utility . | . . . Weapon . | . . . Parts Attached 23 | 6 17 . Power 3 | 1 2 . Engine 3 | 1 2 . Core . | . . . Reactor . | . . . Propulsion 7 | 2 5 . Treads 2 | 1 1 . Leg 2 | . 2 . Wheel 3 | 1 2 . Hover . | . . . Flight . | . . . Utility 5 | 1 4 . Device 1 | . 1 . Storage 3 | 1 2 . Processor . | . . . Hackware . | . . . Protection 1 | . 1 . Artifact . | . . . Weapon 8 | 2 6 . Energy Gun 7 | 2 5 . Energy Cannon . | . . . Ballistic Gun . | . . . Ballistic Cannon . | . . . Launcher 1 | . 1 . Special Weapon . | . . . Impact Weapon . | . . . Slashing Weapon . | . . . Piercing Weapon . | . . . Special Melee Weapon . | . . . Unidentified Prototypes . | . . . Parts Lost 3 | . 3 . Power 2 | . 2 . Propulsion . | . . . Utility . | . . . Weapon 1 | . 1 . Highest Loss Streak 3 | . 3 . To Critical Strikes . | . . . Average Slot Usage (%) 81 | . 80 100 Engine 11 | . 11 14 Treads 4 | . 4 . Leg 15 | . 15 28 Wheel 3 | . 3 . Device 3 | . 4 . Storage 9 | . 9 14 Protection 7 | . 6 14 Energy Gun 17 | . 17 14 Launcher 6 | . 6 14 Naked Turns . | . . . Heaviest Build 89 | 14 89 17 Greatest Support 26 | 3 26 20 Greatest Overweight (x) 29 | 4 29 . Average Overweight (x) 1 | 3 1 . Largest Inventory Capacity 25 | 8 25 8 Average Capacity 10 | 7 13 8 Most Carried 8 | 6 8 8 Average Carried 4 | 4 4 8 Final Capacity 8 | 8 8 8 Final Carried 8 | 5 8 8 Class Distribution -------------------- 100% | Mutant Dominant Class ---------------- Mutant | -10/Materials Mutant | -10/Mines Resources | -11 -10 -10 ----------- Run | Scr Mat Min Matter Collected 450 | 260 190 . Remotely . | . . . Salvage Created 364 | 100 248 16 Parts 22 | 2 20 . Haulers Intercepted . | . . . Recyclers Shooed 1 | . 1 . Parts Field Recycled . | . . . Retrieved Matter . | . . . Parts Self-Destructed . | . . . Prevented . | . . . Kills | -11 -10 -10 ------- Run | Scr Mat Min Combat Hostiles Destroyed 10 | . 5 5 Guns 3 | . 3 . AOE 7 | . 2 5 Classes Destroyed 7 | 1 5 1 Worker 2 | . 2 . Tunneler 1 | . 1 . Recycler 1 | 1 . . Operator 1 | . 1 . Watcher 1 | . 1 . Grunt 5 | . 5 . Assembled 5 | . . 5 Best Kill Streak 5 | 1 3 5 Combat Bots Only 5 | . 2 5 Max Kills in Single Turn 3 | 1 2 3 Gunslinging . | . . . Exploded 3 | . 1 3 Melee . | . . . Uniques/NPCs Destroyed . | . . . Combat | -11 -10 -10 -------- Run | Scr Mat Min Damage Taken 908 | . 832 76 Core 266 | . 190 76 Absorbed by Shields . | . . . Core Remaining (%) 100 | 100 . . Volleys Fired 31 | 6 23 2 Largest 2 | 2 2 1 Hottest 100 | 90 100 30 Shots Fired 57 | 12 43 2 Gun 51 | 12 39 . Cannon . | . . . Launcher 6 | . 4 2 Special . | . . . Kinetic . | . . . Thermal 40 | 6 34 . Explosive 6 | . 4 2 Electromagnetic 11 | 6 5 . Robot Hit Streak 7 | 4 7 2 Robot Miss Streak 3 | 2 3 . Penetration Max . | . . . Secondary Targets 2 | . 2 . Max Gunslinging Chain 1 | . 1 . Shots Hit Robots 31 | 7 22 2 Core Hits 29 | 2 16 11 Critical Kills . | . . . Critical Parts Destroyed . | . . . Critical Strikes 3 | . 3 . Burn 3 | . 3 . Melee Attacks . | . . . Impact . | . . . Slashing . | . . . Piercing . | . . . Sneak Attacks . | . . . Combat Hostiles . | . . . Follow-up Attacks . | . . . Damage Inflicted 958 | 108 555 295 Guns 414 | 108 306 . Cannons . | . . . Explosions 544 | . 249 295 Melee . | . . . Ramming . | . . . Kinetic . | . . . Thermal 301 | 50 251 . Explosive 544 | . 249 295 Electromagnetic 113 | 58 55 . Impact . | . . . Slashing . | . . . Piercing . | . . . Highest Corruption . | . . . Average Corruption . | . . . Corruption Purged . | . . . Corruption Blocked . | . . . Overload Shots . | . . . Overflow Damage . | . . . Projectiles . | . . . Explosions . | . . . Melee . | . . . Knockbacks . | . . . Impact . | . . . Kinetic . | . . . Secondary . | . . . Self-Inflicted Damage 64 | . 64 . Shots 2 | . 2 . Rammed . | . . . Targets Rammed . | . . . Kicked . | . . . Crushed . | . . . Highest Temperature 231 | 120 231 . Average Temperature 100 | 48 115 . Received Heat Transfer 432 | . 432 . Effects 2 | . 2 . Interference 2 | . 2 . Siege Activations . | . . . Robots Corrupted . | . . . Combat Hostiles . | . . . Parts Fried 1 | 1 . . Impact Corruptions . | . . . Robots Melted . | . . . Combat Hostiles . | . . . Parts Melted 1 | . 1 . Heat Transferred 1110 | 148 962 . Parts Sabotaged . | . . . Parts Stolen . | . . . Parts Stripped . | . . . Power Chain Reactions . | . . . Missiles Intercepted . | . . . Alert | -11 -10 -10 ------- Run | Scr Mat Min Peak Influence 271 | 5 271 78 Initial 27 | . 3 27 Average 45 | 1 74 33 Maximum Alert Level 1 | . 1 . Low Security (%) 96 | 100 93 100 Level 1 3 | . 6 . Level 2 . | . . . Level 3 . | . . . Level 4 . | . . . Level 5 . | . . . High Security . | . . . Max Security . | . . . Squads Dispatched 3 | . 3 . Investigation 1 | . 1 . Extermination . | . . . Reinforcement 2 | . 2 . Assault . | . . . Garrison . | . . . Intercept . | . . . Searches Triggered . | . . . Construction Impeded . | . . . Haulers Reinforced . | . . . Active Scanning Responses . | . . . Cargo Convoy Interrupts . | . . . Stealth | -11 -10 -10 --------- Run | Scr Mat Min Distress Signals 2 | . 2 . Communications Jammed . | . . . Distress Signals . | . . . Times Spotted 24 | . 16 8 Peak Tracking Total 10 | . 6 10 Tactical Retreats . | . . . Traps | -11 -10 -10 ------- Run | Scr Mat Min Traps Triggered 1 | . 1 . Indirectly . | . . . Trap Hack Attempts . | . . . Triggered . | . . . Disarmed . | . . . Reprogrammed . | . . . Reused . | . . . Traps Extracted . | . . . Installed . | . . . Triggered . | . . . Machines | -11 -10 -10 ---------- Run | Scr Mat Min Machines Disabled 1 | . 1 . Max in Single Turn 1 | . 1 . Machines Sabotaged . | . . . Garrisons Compromised . | . . . Overloaded Fab Kills . | . . . Hacking | -11 -10 -10 --------- Run | Scr Mat Min Machines Accessed 2 | . 2 . Terminals 2 | . 2 . Fabricators . | . . . Repair Stations . | . . . Recycling Units . | . . . Scanalyzers . | . . . Garrison Access . | . . . Total Hacks 2 | . 2 . Successful 2 | . 2 . Failed . | . . . Catastrophic . | . . . Database Lockouts . | . . . Manual 1 | . 1 . Terminals 2 | . 2 . Fabricators . | . . . Repair Stations . | . . . Recycling Units . | . . . Scanalyzers . | . . . Garrison Access . | . . . Terminal Hacks 1 | . 1 . Alert Level 1 | . 1 . Fabricator Hacks . | . . . Repair Station Hacks . | . . . Recycling Unit Hacks . | . . . Scanalyzer . | . . . Garrison Access Hacks . | . . . Unauthorized Hacks 1 | . 1 . Terminals 1 | . 1 . Botnet 1 | . 1 . Fabricators . | . . . Repair Stations . | . . . Recycling Units . | . . . Scanalyzers . | . . . Garrison Access . | . . . Data Cores Recovered . | . . . Used . | . . . Hacking Detections . | . . . Full Trace Events . | . . . Feedback Events . | . . . Feedback Blocked . | . . . Robot Schematics Acquired . | . . . Robots Built . | . . . Authchips . | . . . Time . | . . . Total Robot Build Rating . | . . . Part Schematics Acquired . | . . . Parts Built . | . . . Authchips . | . . . Time . | . . . Total Part Build Rating . | . . . Parts Repaired . | . . . Time . | . . . Parts Recycled . | . . . Recycled Matter . | . . . Retrieved Matter . | . . . Retrieved Components . | . . . Parts Scanalyzed . | . . . Part Schematics Acquired . | . . . Parts Damaged . | . . . Bothacking | -11 -10 -10 ------------ Run | Scr Mat Min Used RIF Installer . | . . . Robots Hacked . | . . . Non-combat . | . . . Combat . | . . . Robot Hacks Applied . | . . . Relay Couplers Released . | . . . Fabnet Peak Effective % . | . . . Robots Rewired . | . . . Allies Hacked . | . . . Hacks Repelled . | . . . Allies | -11 -10 -10 -------- Run | Scr Mat Min Total Allies . | . . . Largest Group . | . . . Highest-Rated Group . | . . . Highest-Rated Ally . | . . . Total Orders . | . . . Ally Attacks . | . . . Total Damage . | . . . Kills . | . . . Allies Corrupted . | . . . Allies Melted . | . . . Intel | -11 -10 -10 ------- Run | Scr Mat Min Robot Analysis Total . | . . . Derelict Logs Recovered . | . . . Drone Launches . | . . . Drone Recoveries . | . . . Exploration | -11 -10 -10 ------------- Run | Scr Mat Min Turns Passed 868 | 335 505 28 Spaces Moved 411 | 133 258 20 Core 160 | 133 27 . Treads 4 | . 4 . Legs 208 | . 188 20 Wheels 39 | . 39 . Hover . | . . . Flight . | . . . Fastest Speed 50 | 50 120 120 Average Speed 173 | 227 149 120 Slowest Speed 1500 | 250 1500 120 Overloaded Moves . | . . . Propulsion Burnouts . | . . . Robots Hopped . | . . . Cave-ins Triggered . | . . . Exploration Rate (%) 14 | 7 30 6 Regions Visited 2 Branch Regions 1 Pre-discovered Areas . | . . . Known Exits Taken . | . . . Unknown Exits Taken 2 | 1 1 . Scrap Searched . | . . . Spaces Dug . | . . . Terrain Destroyed 56 | . 28 28 Melee . | . . . Projectile . | . . . AOE 56 | . 28 28 Terrain Rammed . | . . . Walls Destroyed . | . . . Machines Disabled . | . . . Actions | -11 -10 -10 --------- Run | Scr Mat Min Total 514 | 156 336 22 Wait 8 | . 8 . Move 409 | 132 257 20 Hop . | . . . Pick Up 29 | 11 18 . Fast Attach 3 | . 3 . Attach 16 | 6 10 . Detach . | . . . Swap 4 | . 4 . Drop 14 | 1 13 . Fire 31 | 6 23 2 Melee . | . . . Ram . | . . . Kick . | . . . Crush . | . . . Escape Stasis . | . . . Rewire . | . . . Trap . | . . . Miscellaneous . | . . . Route ------- -11/Scrapyard -10/Materials (discovered 2 exits: [*Mat] / [*Min]) -10/Mines History --------- Turn | Location | Event 15 | -11/Scrapyard | Discovered new exit (range 16) 336 | -11/Scrapyard | Entered Materials 337 | -10/Materials | Build established: Mutant 458 | -10/Materials | Core integrity fell below 50% 483 | -10/Materials | Lost 3 parts (2p1w) 524 | -10/Materials | Discovered new exit (range 16) 649 | -10/Materials | Discovered new exit (range 6) 841 | -10/Materials | Entered Mines 860 | -10/Mines | Assembled infested the area 867 | -10/Mines | Core integrity fell below 20% 869 | -10/Mines | Destroyed by as-45155 with Assembled Heavy Rifle Last Messages --------------- 00771_ K-01 Serf collects debris. 00773_ U-05 Engineer lays Concrete. 00789_ Acquired Mni. Grenade Launcher. 00794_ Acquired Sml. Laser. 00819_ Acquired Lgt. Assault Rifle. 00829_ Connecting with Terminal... >>Alert(Check) Current Alert Level: Low Security 00836_ Triggered Alarm Trap. 00836_ An alarm sounds. 00836_ ALERT: Alarm triggered, dispatching investigation squad. LOCATION=UNKNOWN GOAL=ESCAPE 00842_ K-01 Serf collects debris. 00860_ ALERT: Infestation in the mines, dispatching Demolisher response squad. 00865_ as-96976 destroyed. 00865_ as-63851 destroyed. 00867_ as-33609 destroyed. 00867_ as-41415 destroyed. Map ----- +----------------------------------------------------+ | ??????????????????????????????????????????????? | | ??????????????????????????????????????????????? | | ??????????????????????????????????????????????? | | ??????????????????????????????????????????????? | | ??????????????????????????????????????????????? | | ??????????????????????????????????????????????? | | ??????????????????????????????????????????????? | | ??????????????????????????????????????????????? | | ??????????????????????????????????????????????? | | ??????????????????????????????????????????????? | | ??????????????????????????????????????????????? | | ?????????????????????????##???????????????????? | | ????????????????????????# a???????????????????? | | ???????????????????????? ???????????????????? | | ???????????????????????? a ???????????????????? | | ???????????????????????? ???????????????????? | | ???????????????????????? a ???????????????????? | | ???????????????????????? ???????????????????? | | ???????????????????????? ???????????????????? | | ???????????????????????? a ???????????????????? | | ????????????????????????# #???????????????????? | | ????????????????????????# ##??????????????????? | | ???????????????????????## ##?????????????????? | | ???????????????????????# ##????????????????? | | ???????????????????????# #????????????????? | | ????????????????????#####@ #????????????????? | | ????????????????????# #????????????????? | | ????????????????????# #????????????????? | | ????????????????????# ### ?????????? | | ????????????????????# #??#########???????????? | | ????????????????????# #??????????????????????? | | ????????????????????# #??????????????????????? | | ??????????#######???# #??????????????????????? | | ??????????# ##### #??????????????????????? | | ??????????# #??????????????????????? | | ??????????# #??????????????????????? | | ??????????# ########??????????????????????? | | ??????????# #?????????????????????????????? | | ??????????# #?????????????????????????????? | | ??????????#######?????????????????????????????? | | ??????????????????????????????????????????????? | | | | | | | | | | | | | | | | | | | +----------------------------------------------------+ Best States ------------- Heat Dissipation 47 Energy Generation 10 Energy Capacity 250 Matter Stores 300 Matter Capacity 300 Sight Range 16 Terrain Scan Density 10 Armor Coverage 225 Evasion (%) 55 Recoil Reduction 1 Item Schematics ----------------- None Robot Schematics ------------------ None Fabricated ------------ Nothing Alien Tech Used ----------------- None Achievements -------------- True Hacker Challenges ------------ None Game ------ Seed AluminumSegregatorCharger Manual? 0 Play Time 00:11:20 Cumulative 2.9 hours Start 2022.09.16 @ 10:51:28 End 2022.09.16 @ 11:05:47 Sessions 1 Manual Loads 0 Difficulty Rogue Special Mode None Game No. 13 Rogue 13 Adventurer 0 Explorer 0 Win Type - Total 0 Types 0/0/0/0/0/0/0/0/0 Lore% 4 Gallery% 5 Achievement% 7 Wizard Run 0 Options --------- ASCII 0 Keyboard 0 Movement Mouse Keybinds 0 Fullscreen 1 Font 24/Crisp Map View 76x50 Tactical HUD 1 Map Filters NONE Filters NONE Steam 1 RUN: a0a9d056-cabe-47ae-97b5-2c401a9b2183